Cogmind - Beta 16 @@@ ROGUE MODE // 2025.11.11 @ 06:28:44 Player: shapeshifter Result: Destroyed by C-17 Slicer with Blade Saw Performance ------------- Evolutions (2) 1000 Regions Visited (4) 800 Robots Destroyed (1) 5 Value Destroyed (27) 27 Prototype IDs (2) 40 Alien Tech Used (0) 0 Bonus (670) 670 TOTAL SCORE: 2542 Bonus ------- Pacifist 470 Entered Garrisons 200 Cogmind --------- Core Integrity 0/550 Matter 261/300 Energy 100/100 System Corruption 0% Temperature Cool (0) Movement Core (50) Location -8/Garrison Parts ------- > --- POWER (1) -------- (None) > --- PROPULSION (4) --- (None) > --- UTILITY (4) ------ (None) > --- WEAPON (2) ------- (None) > --- INVENTORY (5) ---- Light Deuterium Engine Light Deuterium Engine Weight Redist. System Improved Sensor Array Improved Terrain Scan Processor Peak State ------------ > --- POWER ------------ (None) > --- PROPULSION ------- Flight Unit > --- UTILITY ---------- Visual Processing Unit Improved Terrain Scan Processor > --- WEAPON ----------- Flail > --- INVENTORY -------- Light Deuterium Engine Light Deuterium Engine Weight Redist. System Improved Terrain Scan Processor Light Assault Rifle [Rating: 9] Favorites ----------- Power Improved Ion Engine Engine Improved Ion Engine Propulsion Flight Unit Flight Unit Flight Unit Utility Improved Terrain Scan Processor Processor Improved Terrain Scan Processor Weapon Flail Impact Weapon Flail Build | -11 -10 -9 -8 -8 ------- Run | Yrd Mat Mat Mat Gar Slots Evolved 4 | . . 2 2 . Power . | . . . . . Propulsion 2 | . . 2 . . Utility 2 | . . . 2 . Weapon . | . . . . . Parts Attached 5 | . 1 4 . . Power 1 | . 1 . . . Engine 1 | . 1 . . . Core . | . . . . . Reactor . | . . . . . Propulsion 1 | . . 1 . . Treads . | . . . . . Leg . | . . . . . Wheel . | . . . . . Hover . | . . . . . Flight 1 | . . 1 . . Utility 2 | . . 2 . . Device . | . . . . . Storage . | . . . . . Processor 2 | . . 2 . . Hackware . | . . . . . Protection . | . . . . . Artifact . | . . . . . Weapon 1 | . . 1 . . Energy Gun . | . . . . . Energy Cannon . | . . . . . Ballistic Gun . | . . . . . Ballistic Cannon . | . . . . . Launcher . | . . . . . Special Weapon . | . . . . . Impact Weapon 1 | . . 1 . . Slashing Weapon . | . . . . . Piercing Weapon . | . . . . . Special Melee Weapon . | . . . . . Unidentified Prototypes . | . . . . . Parts Lost 3 | . . . . 3 Power . | . . . . . Propulsion 1 | . . . . 1 Utility 1 | . . . . 1 Weapon 1 | . . . . 1 Highest Loss Streak 3 | . . . . 3 To Critical Strikes . | . . . . . Average Backups 4 | 1 4 5 5 5 Power 2 | 1 2 2 2 2 Propulsion . | . . . . . Utility 2 | . . 1 2 3 Weapon . | . 1 1 . . Tool/Special . | . . . . . Unused Backups 9 | . 1 2 1 5 Power 5 | . 1 2 . 2 Propulsion . | . . . . . Utility 3 | . . . . 3 Weapon 1 | . . . 1 . Tool/Special . | . . . . . Average Slot Usage (%) 19 | . . 27 36 16 Flight 4 | . . 6 9 2 Processor 10 | . . 14 18 10 Impact Weapon 4 | . . 6 9 3 Peak Build Rating 9 | . 2 9 9 9 Average Rating 4 | . . 6 9 5 On Entrance 3 | . . . 9 9 Avg Prop Armor Cover (%) . | . . . . . Naked Turns 95 | . 53 14 . 28 Heaviest Build 2 | . . 2 2 2 Greatest Support 4 | 3 3 4 4 4 Greatest Overweight (x) . | . . . . . Average Overweight (x) . | . . . . . Largest Inventory Capacity 5 | 5 5 5 5 5 Average Capacity 5 | 5 5 5 5 5 Most Carried 5 | 3 5 5 5 5 Average Carried 4 | 2 4 4 5 5 Final Capacity 5 | 5 5 5 5 5 Final Carried 5 | 3 5 5 5 5 Class Distribution -------------------- 100% | Mutant Dominant Class ---------------- Mutant | -10/Materials Mutant | -9/Materials Mutant | -8/Materials Mutant | -8/Garrison Resources | -11 -10 -9 -8 -8 ----------- Run | Yrd Mat Mat Mat Gar Matter Collected 201 | 141 . . 60 . Remotely . | . . . . . Salvage Created 13 | . . . . 13 Parts . | . . . . . Haulers Intercepted . | . . . . . Recyclers Shooed . | . . . . . Parts Field Recycled . | . . . . . Retrieved Matter . | . . . . . Parts Self-Destructed . | . . . . . Prevented . | . . . . . Parts Restored . | . . . . . Kills | -11 -10 -9 -8 -8 ------- Run | Yrd Mat Mat Mat Gar Combat Hostiles Destroyed 1 | . . . . 1 Classes Destroyed 1 | . . . . 1 Cutter 1 | . . . . 1 Best Kill Streak 1 | . . . . 1 Combat Bots Only 1 | . . . . 1 Max Kills in Single Turn 1 | . . . . 1 Gunslinging . | . . . . . Exploded . | . . . . . Melee . | . . . . . Uniques/NPCs Destroyed . | . . . . . Combat | -11 -10 -9 -8 -8 -------- Run | Yrd Mat Mat Mat Gar Hostile Shots Fired 100 | . 9 34 15 42 Missed 43 | . 2 19 8 14 Hits 57 | . 7 15 7 28 Melee 21 | . . . . 21 Projectile 36 | . 7 15 7 7 AOE 3 | . . . . 3 Critical Strikes 11 | . . . . 11 Damage Taken 969 | . 99 183 121 566 Core 807 | . 99 153 51 504 Absorbed by Shields . | . . . . . Core Remaining (%) 73 | 100 60 61 . . Volleys Fired . | . . . . . Largest . | . . . . . Hottest . | . . . . . Shots Fired . | . . . . . Gun . | . . . . . Cannon . | . . . . . Launcher . | . . . . . Special . | . . . . . Kinetic . | . . . . . Thermal . | . . . . . Explosive . | . . . . . Electromagnetic . | . . . . . Robot Hit Streak . | . . . . . Robot Miss Streak . | . . . . . Penetration Max . | . . . . . Secondary Targets . | . . . . . Shots Hit Robots 3 | . . . . 3 Core Hits . | . . . . . Critical Kills . | . . . . . Critical Parts Destroyed 2 | . . . . 2 Critical Strikes 2 | . . . . 2 Smash 2 | . . . . 2 Melee Attacks 11 | . . . 1 10 Impact 11 | . . . 1 10 Slashing . | . . . . . Piercing . | . . . . . Sneak Attacks . | . . . . . Combat Hostiles . | . . . . . Follow-up Attacks . | . . . . . Damage Inflicted 180 | . 4 . . 176 Guns . | . . . . . Cannons . | . . . . . Explosions . | . . . . . Melee 127 | . . . . 127 Ramming 53 | . 4 . . 49 Kinetic . | . . . . . Thermal . | . . . . . Explosive . | . . . . . Electromagnetic . | . . . . . Impact 127 | . . . . 127 Slashing . | . . . . . Piercing . | . . . . . Highest Corruption . | . . . . . Average Corruption . | . . . . . Corruption Purged . | . . . . . Corruption Blocked . | . . . . . Overload Shots . | . . . . . Overflow Damage 54 | . . . . 54 Projectiles . | . . . . . Explosions . | . . . . . Melee 54 | . . . . 54 Knockbacks . | . . . . . Impact . | . . . . . Kinetic . | . . . . . Secondary . | . . . . . Self-Inflicted Damage 25 | . 2 . . 23 Shots . | . . . . . Rammed 10 | . 1 . . 9 Targets Rammed 10 | . 1 . . 9 Kicked . | . . . . . Crushed . | . . . . . Highest Temperature . | . . . . . Average Temperature . | . . . . . Received Heat Transfer 135 | . 54 63 18 . Siege Activations . | . . . . . Martial Activations . | . . . . . Shielding Activations . | . . . . . Robots Disrupted . | . . . . . Combat Hostiles . | . . . . . Robots Corrupted 1 | . . . . 1 Combat Hostiles 1 | . . . . 1 Parts Fried . | . . . . . Impact Corruptions 2 | . . . . 2 Robots Melted . | . . . . . Combat Hostiles . | . . . . . Parts Melted . | . . . . . Heat Transferred . | . . . . . Parts Sabotaged . | . . . . . Parts Stolen . | . . . . . Parts Stripped . | . . . . . Power Chain Reactions . | . . . . . Alert | -11 -10 -9 -8 -8 ------- Run | Yrd Mat Mat Mat Gar Maximum Alert Level . | . . . . . Low Security (%) 100 | 100 100 100 100 100 Level 1 . | . . . . . Level 2 . | . . . . . Level 3 . | . . . . . Level 4 . | . . . . . Level 5 . | . . . . . High Security . | . . . . . Max Security . | . . . . . Peak Influence 134 | . . 80 44 134 Initial 39 | . . . 39 28 Average 31 | . . 8 37 69 Influence Increases 261 | . . 110 15 136 Destroy 0b10 Robot/C 20 | . . . . 20 Destroy Leader 10 | . . . . 10 Successful Hack 21 | . . 5 . 16 Disable Machine 15 | . . . 15 . Lose Combat Pursuer 195 | . . 105 . 90 Influence Decreases 127 | . . 15 66 46 Entered New Map 72 | . . . 56 16 Time Decay 25 | . . 15 10 . Lost Part 30 | . . . . 30 Squads Dispatched . | . . . . . Investigation . | . . . . . Extermination . | . . . . . Reinforcement . | . . . . . Assault . | . . . . . Garrison . | . . . . . Intercept . | . . . . . Searches Triggered . | . . . . . Construction Impeded . | . . . . . Haulers Reinforced . | . . . . . Active Scanning Responses . | . . . . . Cargo Convoy Interrupts . | . . . . . Stealth | -11 -10 -9 -8 -8 --------- Run | Yrd Mat Mat Mat Gar Distress Signals 1 | . . . 1 . Communications Jammed . | . . . . . Distress Signals . | . . . . . Times Spotted 34 | . 2 13 10 9 Peak Tracking Total 12 | . 2 12 10 3 Tactical Retreats 5 | . . 2 . 3 Traps | -11 -10 -9 -8 -8 ------- Run | Yrd Mat Mat Mat Gar Traps Triggered . | . . . . . Indirectly . | . . . . . Trap Hack Attempts . | . . . . . Triggered . | . . . . . Disarmed . | . . . . . Reprogrammed . | . . . . . Reused . | . . . . . Traps Extracted . | . . . . . Installed . | . . . . . Triggered . | . . . . . Machines | -11 -10 -9 -8 -8 ---------- Run | Yrd Mat Mat Mat Gar Machines Disabled 2 | . . . 1 1 Max in Single Turn 1 | . . . 1 1 Machines Repaired . | . . . . . Machines Dismantled . | . . . . . Machines Sabotaged . | . . . . . Overloaded Fab Kills . | . . . . . Hacking | -11 -10 -9 -8 -8 --------- Run | Yrd Mat Mat Mat Gar Machines Accessed 6 | . . 3 2 1 Terminals 5 | . . 3 1 1 Fabricators . | . . . . . Repair Stations . | . . . . . Recycling Units . | . . . . . Scanalyzers . | . . . . . Garrison Access 1 | . . . 1 . Total Hacks 13 | . . 8 2 3 Successful 4 | . . 2 1 1 Failed 9 | . . 6 1 2 Catastrophic 3 | . . 2 1 . Database Lockouts . | . . . . . Manual 6 | . . 5 1 . Terminals 12 | . . 8 1 3 Fabricators . | . . . . . Repair Stations . | . . . . . Recycling Units . | . . . . . Scanalyzers . | . . . . . Garrison Access 1 | . . . 1 . Terminal Hacks 3 | . . 2 . 1 Prototype ID Bank 1 | . . 1 . . Terminal Index 1 | . . 1 . . Security Stations 1 | . . . . 1 Fabricator Hacks . | . . . . . Repair Station Hacks . | . . . . . Recycling Unit Hacks . | . . . . . Scanalyzer . | . . . . . Garrison Access Hacks 1 | . . . 1 . Unlock Access 1 | . . . 1 . Unauthorized Hacks . | . . . . . Terminals . | . . . . . Fabricators . | . . . . . Repair Stations . | . . . . . Recycling Units . | . . . . . Scanalyzers . | . . . . . Garrison Access . | . . . . . Data Cores Recovered . | . . . . . Used . | . . . . . Hacking Detections 5 | . . 3 1 1 Full Trace Events . | . . . . . Feedback Events . | . . . . . Feedback Blocked . | . . . . . Robot Schematics Acquired . | . . . . . Robots Built . | . . . . . Authchips . | . . . . . Time . | . . . . . Total Robot Build Rating . | . . . . . Part Schematics Acquired . | . . . . . Parts Built . | . . . . . Authchips . | . . . . . Time . | . . . . . Total Part Build Rating . | . . . . . Part Studies Acquired . | . . . . . Parts Repaired . | . . . . . Time . | . . . . . Parts Recycled . | . . . . . Recycled Matter . | . . . . . Retrieved Matter . | . . . . . Retrieved Components . | . . . . . Parts Scanalyzed . | . . . . . Part Schematics Acquired . | . . . . . Parts Damaged . | . . . . . Bothacking | -11 -10 -9 -8 -8 ------------ Run | Yrd Mat Mat Mat Gar Used RIF Installer . | . . . . . Robots Hacked . | . . . . . Non-combat . | . . . . . Combat . | . . . . . Robot Hacks Applied . | . . . . . Relay Couplers Released . | . . . . . Fabnet Peak Effective % . | . . . . . Robots Rewired . | . . . . . Allies Hacked . | . . . . . Hacks Repelled . | . . . . . Allies | -11 -10 -9 -8 -8 -------- Run | Yrd Mat Mat Mat Gar Total Allies . | . . . . . Largest Group . | . . . . . Highest-Rated Group . | . . . . . Highest-Rated Ally . | . . . . . Total Orders . | . . . . . Ally Attacks . | . . . . . Total Damage . | . . . . . Kills . | . . . . . Allies Corrupted . | . . . . . Allies Melted . | . . . . . Intel | -11 -10 -9 -8 -8 ------- Run | Yrd Mat Mat Mat Gar Active Infowar (turns) 133 | . . 53 34 46 Optics 133 | . . 53 34 46 Robot Analysis Total . | . . . . . Derelict Logs Recovered . | . . . . . Drone Launches . | . . . . . Drone Recoveries . | . . . . . Exploration | -11 -10 -9 -8 -8 ------------- Run | Yrd Mat Mat Mat Gar Turns Passed 310 | 15 54 98 34 109 Spaces Moved 551 | 25 95 207 74 150 Core 256 | 25 95 47 . 89 Treads . | . . . . . Legs . | . . . . . Wheels . | . . . . . Hover . | . . . . . Flight 295 | . . 160 74 61 Fastest Speed 40 | 50 50 40 40 40 Average Speed 44 | 50 50 42 40 45 Slowest Speed 50 | 50 50 50 40 50 Overloaded Moves . | . . . . . Propulsion Burnouts . | . . . . . Robots Hopped 4 | . . 3 1 . Potential Cave-ins . | . . . . . Cave-ins Triggered . | . . . . . Exploration Rate (%) 21 | 3 24 31 14 34 Regions Visited 4 Branch Regions . Pre-discovered Areas . | . . . . . Known Exits Taken 1 | . . . 1 . Unknown Exits Taken 3 | 1 1 1 . . Scrap Searched . | . . . . . Spaces Dug . | . . . . . Terrain Destroyed . | . . . . . Melee . | . . . . . Projectile . | . . . . . AOE . | . . . . . Terrain Rammed . | . . . . . Walls Destroyed . | . . . . . Machines Disabled . | . . . . . Actions | -11 -10 -9 -8 -8 --------- Run | Yrd Mat Mat Mat Gar Total 589 | 27 101 213 76 172 Wait . | . . . . . Move 540 | 24 94 201 72 149 Hop 3 | . . 2 1 . Pick Up 10 | 3 3 3 1 . Fast Attach 9 | . 1 4 . 4 Attach . | . . . . . Detach . | . . . . . Swap . | . . . . . Drop 6 | . 2 3 1 . Fire . | . . . . . Melee 11 | . . . 1 10 Ram 10 | . 1 . . 9 Kick . | . . . . . Crush . | . . . . . Escape Stasis . | . . . . . Rewire . | . . . . . Trap . | . . . . . Miscellaneous . | . . . . . Route ------- -11/Scrapyard -10/Materials -9/Materials (discovered 2 exits: *Mat / [*Min]) -8/Materials -8/Garrison (discovered 1 exit: [*Fac]) History --------- Turn | Location | Event 10 | -11/Scrapyard | Discovered new exit (range 15) 16 | -11/Scrapyard | Entered Materials 64 | -10/Materials | Discovered new exit (range 13) 70 | -10/Materials | Entered another Materials area 70 | -9/Materials | Evolved 2 slots: Propulsion x2 139 | -9/Materials | Discovered new exit (range 18) 167 | -9/Materials | Discovered new exit (range 4) 168 | -9/Materials | Entered another Materials area 168 | -8/Materials | Evolved 2 slots: Utility x2 202 | -8/Materials | Identified exit to Garrison 202 | -8/Materials | Entered Garrison 207 | -8/Garrison | Learned Factory security intel 222 | -8/Garrison | Triggered checkpoint 227 | -8/Garrison | Triggered checkpoint 255 | -8/Garrison | Core integrity fell below 50% 273 | -8/Garrison | Discovered new exit (range 10) 278 | -8/Garrison | Attempted to access garrison exit controls, blocked by remote lockdown 295 | -8/Garrison | Lost 3 parts (1n1u1w) 295 | -8/Garrison | Core integrity fell below 20% 310 | -8/Garrison | Build established: Mutant 311 | -8/Garrison | Destroyed by C-17 Slicer with Blade Saw Last Messages --------------- 00248_ C-17 Slicer system corrupted by crushing effect. 00248_ Flail severed. 00251_ Acquired Flail. 00255_ C-17 Slicer suffers critical hit (Smash). 00255_ Destroyed Blade Saw. 00255_ C-17 Slicer system corrupted by crushing effect. 00256_ C-17 Slicer system terminally corrupted. 00264_ Flail destroyed. 00265_ Slammed into C-17 Slicer. 00266_ Destabilizing: System interference. 00266_ Imp. Terrain Scan Processor temporarily disabled. 00267_ Slammed into C-17 Slicer. 00273_ EXIT=FOUND 00278_ Attempting to access garrison exit controls... 00278_ Remote lockdown engaged. 00283_ Imp. Terrain Scan Processor severed. 00288_ Slammed into C-17 Slicer. 00294_ Slammed into S-10 Pest. 00306_ Slug penetrates Reinforced Barrier. 00310_ Penetrated by Slug. Map ----- +----------------------------------------------------+ | ?????????????????????????????????????????????? # | | ?????????????????????????????????????????????? # | | ?????????????????????????????????????????????? # | | ??????????????????????????????????????????????# # | | ??????????????????????????????????????????????# # | | ??????????????????????????????????????????????# # | | ??????????????????????????????????????????????# # | | ??????????????????????????????????????????????# # | | ??????????????????????????????????????????????" # | | ?????????????????????????####?????????????????" # | | ????????????????????????? ?????????????????" # | | ????????????????????????? ?????????????????# # | | ????????????????????????? #??????########### # | | ?????????????????????????# #??????# | | ?????????????????????????# #??????# | | ?????????????????????????# #??????# | | ????????????????????????## #??????# ########## | | ????????????????????????? #??????# #????????? | | ?????????????????????????# #??????# #????????? | | ?????????????????????????# #??????# #????????? | | ?????????????????????????# #??????# #????????? | | ?????????????????????????# ######## #????????? | | ?????????????????????????# ## ## #????????? | | ?????????????????????????# ## ## #????????? | | ?????????????????######### h #????????? | | ??????????????# @ #????????? | | ?????????????????#### ####c #????????? | | ?????????????????????????# ## ## #????????? | | ???????????????????????### ## ## #????????? | | ???????????????????????# "????????? | | ???????????????????????# "????????? | | ???????????????????????# "????????? | | ???????????????????????# "????????? | | ???????????????????????### ## ## #????????? | | ?????????????????????????# ## ## ##???????? | | ????????????????????###### ????? | | ????????????????????# ^ ????? | | ??????###########???# #### ###??????? | | #???# #??## ##""""######????????? | | ??????###"""### #???# #???# #???????????????????? | | ??????????????# ##### ##### #???????????????????? | | ??????????????# # + #???????????????????? | | ??????????????# ##### ##### #???????????????????? | | ??????????????# #???# #???# #???????????????????? | | ??????????????# #???# #???# #???????????????????? | | ???????????#### #####+##### #???????????????????? | | ???????????# % #???????????????????? | | ???????????# #???????????????????? | | ???????????# ########## ### #???????????????????? | | ???????????# #????????# #?? #??????????????????? | +----------------------------------------------------+ Best States ------------- Heat Dissipation 31 Energy Generation 5 Energy Capacity 100 Matter Stores 261 Matter Capacity 300 Sight Range 18 Terrain Scan Density 110 Evasion (%) 62 Item Schematics ----------------- None Robot Schematics ------------------ None Fabricated ------------ Nothing Repaired ---------- Nothing Studied --------- None Alien Tech Used ----------------- None Achievements -------------- None Challenges ------------ None Game ------ Seed LatentMassDrive Manual? 0 Play Time 00:06:34 Cumulative 488.8 hours Start 2025.11.11 @ 06:23:51 End 2025.11.11 @ 06:28:44 Sessions 1 Manual Loads 0 Difficulty Rogue Special Mode None Game No. 647 Rogue 647 Adventurer 0 Explorer 0 Win Type - Total 15 Types 7/0/2/2/1/0/2/1/0/0 Lore% 90 Gallery% 85 Achievement% 65 Wizard Run 0 Options --------- Layout 0 ASCII 0 Keyboard 0 Movement Mouse Keybinds 0 Fullscreen 1 Font 24/Terminus Map View 76x50 Zoom Use 0% Tactical HUD 1 Map Filters NONE Filters NONE Steam 1 RUN: 5f374665-a390-497c-97e4-d99ab1e3f379